[Event "Early-Titled-Tuesday-Blitz-May-07-2024"]
[Site "Chess.com"]
[Date "2024.05.07"]
[Round "3"]
[White "jinbojinbo"]
[Black "mbojan"]
[Result "1-0"]
[WhiteElo "2638"]
[BlackElo "2907"]
[TimeControl "180+1"]
[EndTime "8:32:45 PDT"]
[Termination "jinbojinbo won on time"]

1. e4 {[%clk 0:03:00.9]} 1... g6 {[%clk 0:02:56.3]} 2. d4 {[%clk 0:02:59.5]}
2... Nf6 {[%clk 0:02:56.6]} 3. Nc3 {[%clk 0:02:59.1]} 3... d5 {[%clk 0:02:56.4]}
4. Bd3 {[%clk 0:02:41.9]} 4... dxe4 {[%clk 0:02:50.8]} 5. Nxe4 {[%clk
0:02:42.8]} 5... Bg7 {[%clk 0:02:50.9]} 6. Nf3 {[%clk 0:02:39.7]} 6... O-O
{[%clk 0:02:51.1]} 7. O-O {[%clk 0:02:39.5]} 7... Bg4 {[%clk 0:02:47.7]} 8.
Nxf6+ {[%clk 0:02:38.9]} 8... exf6 {[%clk 0:02:46]} 9. c3 {[%clk 0:02:35.7]}
9... Nd7 {[%clk 0:02:39.1]} 10. h3 {[%clk 0:02:34.9]} 10... Be6 {[%clk
0:02:38.9]} 11. c4 {[%clk 0:02:30.4]} 11... c6 {[%clk 0:02:38.5]} 12. b3 {[%clk
0:02:30.2]} 12... a6 {[%clk 0:02:16.8]} 13. Bb2 {[%clk 0:02:29.1]} 13... Re8
{[%clk 0:02:07.1]} 14. Qd2 {[%clk 0:02:26.5]} 14... Nf8 {[%clk 0:01:58.8]} 15.
Rad1 {[%clk 0:02:26]} 15... Qd7 {[%clk 0:01:57]} 16. Rfe1 {[%clk 0:02:05.8]}
16... Rad8 {[%clk 0:01:56.5]} 17. Bf1 {[%clk 0:02:05.4]} 17... Bf5 {[%clk
0:01:51.3]} 18. Rxe8 {[%clk 0:01:50.7]} 18... Qxe8 {[%clk 0:01:52.2]} 19. Re1
{[%clk 0:01:49.8]} 19... Qd7 {[%clk 0:01:51.1]} 20. Qe3 {[%clk 0:01:48.7]} 20...
g5 {[%clk 0:01:40.3]} 21. h4 {[%clk 0:01:37.4]} 21... h6 {[%clk 0:01:38]} 22. g3
{[%clk 0:01:37]} 22... Bg6 {[%clk 0:01:33.8]} 23. Bg2 {[%clk 0:01:34.9]} 23...
Ne6 {[%clk 0:01:30.9]} 24. d5 {[%clk 0:01:24.6]} 24... cxd5 {[%clk 0:01:26.1]}
25. cxd5 {[%clk 0:01:25.5]} 25... Nc7 {[%clk 0:01:26]} 26. hxg5 {[%clk
0:01:15.9]} 26... hxg5 {[%clk 0:01:25.1]} 27. Qd4 {[%clk 0:01:05.5]} 27... Qxd5
{[%clk 0:01:13.5]} 28. Re7 {[%clk 0:01:03.9]} 28... Qxd4 {[%clk 0:00:51]} 29.
Nxd4 {[%clk 0:01:04.8]} 29... Nd5 {[%clk 0:00:51.1]} 30. Rxb7 {[%clk 0:01:01.6]}
30... f5 {[%clk 0:00:51.6]} 31. a3 {[%clk 0:00:35.2]} 31... f4 {[%clk
0:00:49.8]} 32. g4 {[%clk 0:00:33.4]} 32... a5 {[%clk 0:00:33.1]} 33. Bf3 {[%clk
0:00:32.4]} 33... Bf6 {[%clk 0:00:15.8]} 34. Kg2 {[%clk 0:00:27.9]} 34... Ne7
{[%clk 0:00:15.7]} 35. Nc6 {[%clk 0:00:23.7]} 35... Bxb2 {[%clk 0:00:03.9]} 36.
Nxd8 {[%clk 0:00:23.3]} 36... Bxa3 {[%clk 0:00:04.6]} 37. Rb5 {[%clk 0:00:18.3]}
37... f6 {[%clk 0:00:03.7]} 38. Rxa5 {[%clk 0:00:17.9]} 38... Bb4 {[%clk
0:00:04.3]} 39. Rb5 {[%clk 0:00:17.9]} 39... Bd6 {[%clk 0:00:04.4]} 40. Rb7
{[%clk 0:00:15.2]} 40... Be8 {[%clk 0:00:02.8]} 41. b4 {[%clk 0:00:14.8]} 41...
Ng6 {[%clk 0:00:02.9]} 42. b5 {[%clk 0:00:14.3]} 42... Ne5 {[%clk 0:00:03.5]}
43. Bd5+ {[%clk 0:00:14.6]} 43... Kh8 {[%clk 0:00:03.1]} 44. Nc6 {[%clk
0:00:14.5]} 44... f3+ {[%clk 0:00:03.1]} 45. Kh3 {[%clk 0:00:14]} 45... Nd3
{[%clk 0:00:02.7]} 46. Bxf3 {[%clk 0:00:14]} 46... Nxf2+ {[%clk 0:00:03]} 47.
Kg2 {[%clk 0:00:14.4]} 47... Nd3 {[%clk 0:00:03.8]} 48. Ra7 {[%clk 0:00:14.3]}
48... Nf4+ {[%clk 0:00:02.9]} 49. Kf1 {[%clk 0:00:13.7]} 49... Bg6 {[%clk
0:00:03.3]} 50. b6 {[%clk 0:00:12.5]} 50... Bd3+ {[%clk 0:00:03.9]} 51. Ke1
{[%clk 0:00:12.5]} 51... Bb4+ {[%clk 0:00:02.4]} 52. Nxb4 {[%clk 0:00:12.2]} 1-0

[Event "Early-Titled-Tuesday-Blitz-May-07-2024"]
[Site "Chess.com"]
[Date "2024.05.07"]
[Round "3"]
[White "XDPS"]
[Black "Fh2411"]
[Result "1/2-1/2"]
[WhiteElo "2839"]
[BlackElo "2537"]
[TimeControl "180+1"]
[EndTime "8:32:49 PDT"]
[Termination "Game drawn by repetition"]

1. d4 {[%clk 0:03:00.9]} 1... d5 {[%clk 0:02:53.3]} 2. c4 {[%clk 0:03:00.8]}
2... c6 {[%clk 0:02:53.3]} 3. Nf3 {[%clk 0:03:00.7]} 3... Nf6 {[%clk 0:02:52.8]}
4. Nbd2 {[%clk 0:03:01]} 4... g6 {[%clk 0:02:46.1]} 5. e3 {[%clk 0:02:58.8]}
5... Bg7 {[%clk 0:02:46.5]} 6. b4 {[%clk 0:02:58.4]} 6... O-O {[%clk 0:02:46.5]}
7. a4 {[%clk 0:02:58.3]} 7... Bg4 {[%clk 0:02:32.8]} 8. Bb2 {[%clk 0:02:56.8]}
8... Nbd7 {[%clk 0:02:32.3]} 9. Be2 {[%clk 0:02:55.6]} 9... Ne4 {[%clk
0:02:28.5]} 10. Nxe4 {[%clk 0:02:38.8]} 10... dxe4 {[%clk 0:02:27.9]} 11. Nd2
{[%clk 0:02:39.5]} 11... Bxe2 {[%clk 0:02:25.5]} 12. Qxe2 {[%clk 0:02:40.4]}
12... f5 {[%clk 0:02:25.3]} 13. O-O {[%clk 0:02:40.6]} 13... e5 {[%clk
0:02:16.2]} 14. d5 {[%clk 0:02:40.8]} 14... c5 {[%clk 0:02:10.5]} 15. bxc5
{[%clk 0:02:36.4]} 15... Nxc5 {[%clk 0:02:09.3]} 16. Ba3 {[%clk 0:02:37]} 16...
Rc8 {[%clk 0:02:09.6]} 17. Rab1 {[%clk 0:02:36.3]} 17... b6 {[%clk 0:02:08.6]}
18. a5 {[%clk 0:02:36.9]} 18... Rf6 {[%clk 0:02:05.7]} 19. axb6 {[%clk
0:02:37.1]} 19... axb6 {[%clk 0:02:06.5]} 20. Rb5 {[%clk 0:02:19.1]} 20... Bf8
{[%clk 0:02:05.8]} 21. Rfb1 {[%clk 0:02:18.8]} 21... Ra8 {[%clk 0:01:42.4]} 22.
Bxc5 {[%clk 0:01:38.7]} 22... Bxc5 {[%clk 0:01:35.8]} 23. Nb3 {[%clk 0:01:38.7]}
23... Be7 {[%clk 0:01:33.1]} 24. Qb2 {[%clk 0:01:32.7]} 24... Qc7 {[%clk
0:01:23.2]} 25. Nd2 {[%clk 0:01:32.3]} 25... Bc5 {[%clk 0:01:21.6]} 26. h3
{[%clk 0:01:30.9]} 26... h5 {[%clk 0:01:20.9]} 27. Nb3 {[%clk 0:01:28.8]} 27...
Be7 {[%clk 0:01:20.1]} 28. Rc1 {[%clk 0:01:10.7]} 28... Ba3 {[%clk 0:01:13.5]}
29. Qa1 {[%clk 0:01:10.8]} 29... Ra7 {[%clk 0:01:07.7]} 30. Rc2 {[%clk
0:01:08.6]} 30... Be7 {[%clk 0:01:00.6]} 31. Qc3 {[%clk 0:01:06.9]} 31... Ra3
{[%clk 0:00:56.8]} 32. Qb2 {[%clk 0:01:06.8]} 32... Qa7 {[%clk 0:00:56.2]} 33.
Qxe5 {[%clk 0:01:05.5]} 33... Kf7 {[%clk 0:00:51.3]} 34. Qb2 {[%clk 0:00:59.7]}
34... Qa4 {[%clk 0:00:46.4]} 35. Nd4 {[%clk 0:00:54.2]} 35... Ra1+ {[%clk
0:00:44.6]} 36. Kh2 {[%clk 0:00:54.4]} 36... Bd6+ {[%clk 0:00:42.2]} 37. g3
{[%clk 0:00:54.9]} 37... h4 {[%clk 0:00:40.7]} 38. Rxb6 {[%clk 0:00:50.4]} 38...
hxg3+ {[%clk 0:00:40.6]} 39. fxg3 {[%clk 0:00:51.1]} 39... Qa5 {[%clk
0:00:20.6]} 40. Rb7+ {[%clk 0:00:43.4]} 40... Kg8 {[%clk 0:00:20.5]} 41. Nb3
{[%clk 0:00:34.3]} 41... Bxg3+ {[%clk 0:00:19.3]} 42. Kg2 {[%clk 0:00:34.5]}
42... Rg1+ {[%clk 0:00:15.5]} 43. Kxg1 {[%clk 0:00:33.3]} 43... Qe1+ {[%clk
0:00:16.2]} 44. Kg2 {[%clk 0:00:33.8]} 44... f4 {[%clk 0:00:16.6]} 45. exf4
{[%clk 0:00:24.8]} 45... Bxf4 {[%clk 0:00:16.3]} 46. Qxf6 {[%clk 0:00:17.3]}
46... Qg3+ {[%clk 0:00:15.7]} 47. Kf1 {[%clk 0:00:17.8]} 47... Qd3+ {[%clk
0:00:12.8]} 48. Re2 {[%clk 0:00:17.6]} 48... Qxh3+ {[%clk 0:00:11.7]} 49. Rg2
{[%clk 0:00:06]} 49... Qf3+ {[%clk 0:00:08.9]} 50. Rf2 {[%clk 0:00:01.5]} 50...
Qd1+ {[%clk 0:00:09.1]} 51. Kg2 {[%clk 0:00:02.1]} 51... Qg4+ {[%clk 0:00:09.7]}
52. Kh1 {[%clk 0:00:02.3]} 52... Qd1+ {[%clk 0:00:06.8]} 53. Kg2 {[%clk
0:00:02.7]} 53... Qg4+ {[%clk 0:00:07.4]} 54. Kf1 {[%clk 0:00:03.2]} 54... Qd1+
{[%clk 0:00:08.1]} 55. Kg2 {[%clk 0:00:03.8]} 1/2-1/2

[Event "Early-Titled-Tuesday-Blitz-May-07-2024"]
[Site "Chess.com"]
[Date "2024.05.07"]
[Round "3"]
[White "Suleyman_Chess06"]
[Black "DanielNaroditsky"]
[Result "0-1"]
[WhiteElo "2787"]
[BlackElo "3076"]
[TimeControl "180+1"]
[EndTime "8:32:50 PDT"]
[Termination "DanielNaroditsky won by resignation"]

1. Nf3 {[%clk 0:03:00.9]} 1... Nf6 {[%clk 0:02:59.9]} 2. g3 {[%clk 0:03:01.4]}
2... g6 {[%clk 0:03:00.4]} 3. Bg2 {[%clk 0:03:01.9]} 3... Bg7 {[%clk 0:03:01.2]}
4. O-O {[%clk 0:03:02.6]} 4... O-O {[%clk 0:03:02]} 5. d4 {[%clk 0:03:03.2]}
5... d6 {[%clk 0:03:02.4]} 6. c4 {[%clk 0:03:03.6]} 6... Nbd7 {[%clk 0:03:02.7]}
7. Nc3 {[%clk 0:03:04.2]} 7... e5 {[%clk 0:03:03.5]} 8. e4 {[%clk 0:03:04.8]}
8... c6 {[%clk 0:03:03.8]} 9. Qc2 {[%clk 0:03:04.8]} 9... exd4 {[%clk
0:02:56.2]} 10. Nxd4 {[%clk 0:03:05.7]} 10... Re8 {[%clk 0:02:56]} 11. Rd1
{[%clk 0:03:05.7]} 11... Qe7 {[%clk 0:02:52.8]} 12. h3 {[%clk 0:03:00.4]} 12...
Nc5 {[%clk 0:02:52.9]} 13. f3 {[%clk 0:02:53.5]} 13... Nfd7 {[%clk 0:02:48.2]}
14. Bf4 {[%clk 0:02:50.4]} 14... Ne5 {[%clk 0:02:48.3]} 15. b3 {[%clk
0:02:49.9]} 15... a5 {[%clk 0:02:43.9]} 16. Rd2 {[%clk 0:02:48.6]} 16... a4
{[%clk 0:02:40.2]} 17. Rad1 {[%clk 0:02:48.7]} 17... axb3 {[%clk 0:02:40.5]} 18.
axb3 {[%clk 0:02:46]} 18... h5 {[%clk 0:02:17.6]} 19. Nde2 {[%clk 0:02:40.9]}
19... Ra3 {[%clk 0:02:11.1]} 20. Nc1 {[%clk 0:02:29.7]} 20... Nxc4 {[%clk
0:02:03.4]} 21. Nb1 {[%clk 0:01:59.4]} 21... Nxd2 {[%clk 0:01:50.3]} 22. Nxa3
{[%clk 0:01:59]} 22... Nxf3+ {[%clk 0:01:37.3]} 23. Bxf3 {[%clk 0:01:57.5]}
23... Be5 {[%clk 0:01:26]} 24. Qd2 {[%clk 0:01:49.1]} 24... Ne6 {[%clk 0:01:14]}
25. Ne2 {[%clk 0:01:34.5]} 25... h4 {[%clk 0:01:05.2]} 26. Nc4 {[%clk
0:01:27.7]} 26... Qf6 {[%clk 0:00:58.7]} 27. Nxd6 {[%clk 0:00:35.3]} 27... Rd8
{[%clk 0:00:57.1]} 28. Bxe5 {[%clk 0:00:33.1]} 28... Qxe5 {[%clk 0:00:58]} 29.
Kg2 {[%clk 0:00:16.3]} 29... Ng5 {[%clk 0:00:43.7]} 30. Qf4 {[%clk 0:00:13.7]}
30... Bxh3+ {[%clk 0:00:41.1]} 31. Kf2 {[%clk 0:00:05.7]} 31... Qc5+ {[%clk
0:00:29]} 32. Qe3 {[%clk 0:00:04.8]} 32... hxg3+ {[%clk 0:00:20.7]} 33. Nxg3
{[%clk 0:00:04.2]} 33... Qe5 {[%clk 0:00:09.1]} 34. Nc4 {[%clk 0:00:04.2]} 34...
Qe7 {[%clk 0:00:09.8]} 35. Rxd8+ {[%clk 0:00:03.8]} 35... Qxd8 {[%clk
0:00:10.7]} 36. Qd2 {[%clk 0:00:03.1]} 36... Qf6 {[%clk 0:00:10]} 37. Qe3 {[%clk
0:00:02.2]} 37... Bg4 {[%clk 0:00:10.5]} 38. Nf5 {[%clk 0:00:01.7]} 38... gxf5
{[%clk 0:00:10.1]} 39. e5 {[%clk 0:00:02.3]} 39... Qh6 {[%clk 0:00:09.1]} 40.
Bxg4 {[%clk 0:00:02.6]} 40... fxg4 {[%clk 0:00:09.8]} 41. Ke2 {[%clk 0:00:02]}
41... Qh2+ {[%clk 0:00:08.9]} 42. Kd1 {[%clk 0:00:02.2]} 42... Ne6 {[%clk
0:00:07.7]} 43. Qe4 {[%clk 0:00:01.8]} 43... Qg1+ {[%clk 0:00:07.3]} 44. Ke2
{[%clk 0:00:02]} 44... Qd4 {[%clk 0:00:06.5]} 45. Qf5 {[%clk 0:00:01.7]} 45...
Qf4 {[%clk 0:00:06]} 46. Qd3 {[%clk 0:00:02.4]} 46... Nd4+ {[%clk 0:00:05.8]}
47. Kd1 {[%clk 0:00:03.2]} 47... Qf3+ {[%clk 0:00:06.2]} 48. Kd2 {[%clk
0:00:03.7]} 48... Nxb3+ {[%clk 0:00:05.7]} 49. Kc3 {[%clk 0:00:04]} 49... Qxd3+
{[%clk 0:00:06.2]} 50. Kxd3 {[%clk 0:00:04.9]} 50... Nc5+ {[%clk 0:00:07.1]} 51.
Ke3 {[%clk 0:00:05.3]} 51... b5 {[%clk 0:00:07.2]} 52. Na5 {[%clk 0:00:05.1]}
52... b4 {[%clk 0:00:08]} 53. Nxc6 {[%clk 0:00:05.2]} 53... b3 {[%clk
0:00:08.8]} 54. Kd2 {[%clk 0:00:04.6]} 54... g3 {[%clk 0:00:08]} 55. Nd4 {[%clk
0:00:04.7]} 55... g2 {[%clk 0:00:08.6]} 56. Nf3 {[%clk 0:00:05.1]} 56... b2
{[%clk 0:00:08.5]} 57. Kc2 {[%clk 0:00:05.4]} 57... Nd3 {[%clk 0:00:09.3]} 58.
Kb1 {[%clk 0:00:04.5]} 58... Nxe5 {[%clk 0:00:09]} 59. Ng1 {[%clk 0:00:03.6]}
59... Nc4 {[%clk 0:00:09.7]} 60. Kc2 {[%clk 0:00:03.9]} 60... f5 {[%clk
0:00:10.2]} 0-1

[Event "Early-Titled-Tuesday-Blitz-May-07-2024"]
[Site "Chess.com"]
[Date "2024.05.07"]
[Round "3"]
[White "bancsoo"]
[Black "BM223344"]
[Result "1-0"]
[WhiteElo "2884"]
[BlackElo "2630"]
[TimeControl "180+1"]
[EndTime "8:32:50 PDT"]
[Termination "bancsoo won by resignation"]

1. Nf3 {[%clk 0:03:00.9]} 1... Nf6 {[%clk 0:02:59.6]} 2. g3 {[%clk 0:03:00.7]}
2... g6 {[%clk 0:02:59.9]} 3. Bg2 {[%clk 0:03:00.6]} 3... Bg7 {[%clk 0:03:00.8]}
4. d4 {[%clk 0:03:01]} 4... d6 {[%clk 0:03:01.7]} 5. c4 {[%clk 0:03:00.7]} 5...
O-O {[%clk 0:03:02.6]} 6. Nc3 {[%clk 0:03:00.9]} 6... Nc6 {[%clk 0:03:03.1]} 7.
O-O {[%clk 0:03:00.8]} 7... e5 {[%clk 0:03:03.7]} 8. dxe5 {[%clk 0:02:59.6]}
8... dxe5 {[%clk 0:03:02.1]} 9. Be3 {[%clk 0:02:59.6]} 9... Be6 {[%clk
0:03:01.6]} 10. Qa4 {[%clk 0:02:58.5]} 10... Qe7 {[%clk 0:02:58.6]} 11. Rfd1
{[%clk 0:02:51.5]} 11... Rfd8 {[%clk 0:02:52]} 12. Bg5 {[%clk 0:02:23.3]} 12...
h6 {[%clk 0:02:37.8]} 13. Bxf6 {[%clk 0:02:19.9]} 13... Qxf6 {[%clk 0:02:38.1]}
14. Nd5 {[%clk 0:02:12.4]} 14... Bxd5 {[%clk 0:02:36.4]} 15. cxd5 {[%clk
0:02:12.5]} 15... Nd4 {[%clk 0:02:35.1]} 16. Nxd4 {[%clk 0:02:11.7]} 16... exd4
{[%clk 0:02:35.6]} 17. Rac1 {[%clk 0:02:12.2]} 17... Qb6 {[%clk 0:02:32.5]} 18.
Rc2 {[%clk 0:02:00.3]} 18... Re8 {[%clk 0:02:32.1]} 19. Bf3 {[%clk 0:01:59.1]}
19... Rad8 {[%clk 0:02:29.3]} 20. Kg2 {[%clk 0:01:56.5]} 20... h5 {[%clk
0:02:26.7]} 21. h4 {[%clk 0:01:55.4]} 21... Re7 {[%clk 0:02:23.4]} 22. b4 {[%clk
0:01:52.6]} 22... a6 {[%clk 0:02:23.4]} 23. Qa5 {[%clk 0:01:51.2]} 23... Rd6
{[%clk 0:01:53.7]} 24. Qxb6 {[%clk 0:01:40]} 24... Rxb6 {[%clk 0:01:53.4]} 25.
a3 {[%clk 0:01:40.7]} 25... Be5 {[%clk 0:01:46.9]} 26. Rc4 {[%clk 0:01:34.4]}
26... Kg7 {[%clk 0:01:45.6]} 27. a4 {[%clk 0:01:23.5]} 27... Rd6 {[%clk
0:01:35.3]} 28. a5 {[%clk 0:01:21.6]} 28... f5 {[%clk 0:01:34.2]} 29. Rb1 {[%clk
0:01:20.8]} 29... b5 {[%clk 0:01:21.6]} 30. Rc2 {[%clk 0:00:57.9]} 30... Rf6
{[%clk 0:01:19.7]} 31. Rd1 {[%clk 0:00:47.6]} 31... Kf7 {[%clk 0:01:12.8]} 32.
Kf1 {[%clk 0:00:46.3]} 32... Ke8 {[%clk 0:01:12.7]} 33. Kg2 {[%clk 0:00:42]}
33... Kd8 {[%clk 0:01:13.1]} 34. Kh3 {[%clk 0:00:42.5]} 34... Ke8 {[%clk
0:01:06.7]} 35. Bg2 {[%clk 0:00:42.4]} 35... Kd8 {[%clk 0:01:06.9]} 36. f4
{[%clk 0:00:42.5]} 36... Bd6 {[%clk 0:01:05.3]} 37. Rxd4 {[%clk 0:00:42.2]}
37... Re3 {[%clk 0:01:05.7]} 38. Bf3 {[%clk 0:00:36.5]} 38... Be7 {[%clk
0:00:50.8]} 39. Rb2 {[%clk 0:00:33.8]} 39... Rf8 {[%clk 0:00:47]} 40. Kg2 {[%clk
0:00:34]} 40... Bf6 {[%clk 0:00:47.1]} 41. Rbd2 {[%clk 0:00:30.2]} 41... Bxd4
{[%clk 0:00:46.5]} 42. Rxd4 {[%clk 0:00:31.1]} 42... Kd7 {[%clk 0:00:46.8]} 43.
Kf2 {[%clk 0:00:31]} 43... Rb3 {[%clk 0:00:46.8]} 44. e4 {[%clk 0:00:30.6]}
44... fxe4 {[%clk 0:00:45.8]} 45. Bxe4 {[%clk 0:00:31.5]} 45... Rf6 {[%clk
0:00:46.2]} 46. Bd3 {[%clk 0:00:30.7]} 46... Rd6 {[%clk 0:00:44.3]} 47. Kf3
{[%clk 0:00:30.9]} 47... Ke7 {[%clk 0:00:44.6]} 48. Ke3 {[%clk 0:00:29.6]} 48...
Kf6 {[%clk 0:00:45]} 49. Kd2 {[%clk 0:00:30.3]} 49... Rb2+ {[%clk 0:00:45.3]}
50. Kc3 {[%clk 0:00:30]} 50... Rg2 {[%clk 0:00:45.3]} 51. Re4 {[%clk 0:00:25.3]}
51... Rxg3 {[%clk 0:00:45.4]} 52. Kd4 {[%clk 0:00:25.4]} 52... Rg4 {[%clk
0:00:43.4]} 53. Kc5 {[%clk 0:00:23.5]} 53... Rxh4 {[%clk 0:00:41.1]} 54. Re8
{[%clk 0:00:23.6]} 54... Rxf4 {[%clk 0:00:33.5]} 55. Rc8 {[%clk 0:00:24]} 55...
Rd7 {[%clk 0:00:33.6]} 56. Ra8 {[%clk 0:00:24.1]} 56... Rf3 {[%clk 0:00:30.7]}
57. Rxa6+ {[%clk 0:00:22.1]} 57... Kg5 {[%clk 0:00:25.8]} 58. Rxg6+ {[%clk
0:00:21.1]} 58... Kf4 {[%clk 0:00:25.3]} 59. Rf6+ {[%clk 0:00:19.7]} 59... Ke3
{[%clk 0:00:25.3]} 60. Rxf3+ {[%clk 0:00:20.2]} 60... Kxf3 {[%clk 0:00:26]} 61.
Bxb5 {[%clk 0:00:20.9]} 61... Rd6 {[%clk 0:00:22]} 62. Bc6 {[%clk 0:00:21]}
62... h4 {[%clk 0:00:22.1]} 63. a6 {[%clk 0:00:21.7]} 63... h3 {[%clk
0:00:22.3]} 64. a7 {[%clk 0:00:22.3]} 64... Rd8 {[%clk 0:00:22.5]} 65. a8=Q
{[%clk 0:00:20.8]} 65... Rxa8 {[%clk 0:00:22.4]} 66. Bxa8 {[%clk 0:00:21.7]}
66... Ke3 {[%clk 0:00:19.3]} 67. d6 {[%clk 0:00:22.2]} 67... cxd6+ {[%clk
0:00:20.2]} 68. Kxd6 {[%clk 0:00:23.1]} 68... h2 {[%clk 0:00:20.4]} 69. b5
{[%clk 0:00:23.6]} 69... Kd4 {[%clk 0:00:20.7]} 70. b6 {[%clk 0:00:24]} 70...
Kc4 {[%clk 0:00:21.4]} 71. Bc6 {[%clk 0:00:23.8]} 71... Kd4 {[%clk 0:00:20.8]}
72. b7 {[%clk 0:00:24]} 72... h1=Q {[%clk 0:00:21.5]} 73. Bxh1 {[%clk
0:00:24.3]} 73... Ke3 {[%clk 0:00:22.2]} 74. b8=Q {[%clk 0:00:24.3]} 74... Kf4
{[%clk 0:00:23.1]} 75. Qg8 {[%clk 0:00:24.4]} 75... Kf5 {[%clk 0:00:23.1]} 1-0

[Event "Early-Titled-Tuesday-Blitz-May-07-2024"]
[Site "Chess.com"]
[Date "2024.05.07"]
[Round "3"]
[White "chesslh93"]
[Black "AlexanderKing"]
[Result "0-1"]
[WhiteElo "2363"]
[BlackElo "2581"]
[TimeControl "180+1"]
[EndTime "8:32:51 PDT"]
[Termination "AlexanderKing won on time"]

1. e4 {[%clk 0:03:00.9]} 1... c5 {[%clk 0:03:00.1]} 2. Nf3 {[%clk 0:03:00.8]}
2... e6 {[%clk 0:03:00.3]} 3. d4 {[%clk 0:03:01]} 3... cxd4 {[%clk 0:03:01.2]}
4. Nxd4 {[%clk 0:03:01.9]} 4... a6 {[%clk 0:03:01.4]} 5. c4 {[%clk 0:03:02]}
5... Nf6 {[%clk 0:03:01]} 6. Nc3 {[%clk 0:03:02.5]} 6... Bb4 {[%clk 0:03:01.5]}
7. Bd3 {[%clk 0:03:02.7]} 7... Nc6 {[%clk 0:02:58.7]} 8. Nxc6 {[%clk 0:03:02.9]}
8... dxc6 {[%clk 0:02:58.8]} 9. e5 {[%clk 0:03:02.9]} 9... Qa5 {[%clk
0:02:56.8]} 10. exf6 {[%clk 0:03:02.8]} 10... Bxc3+ {[%clk 0:02:56.5]} 11. bxc3
{[%clk 0:03:03.7]} 11... Qxc3+ {[%clk 0:02:57.4]} 12. Bd2 {[%clk 0:03:01.7]}
12... Qxd3 {[%clk 0:02:57]} 13. fxg7 {[%clk 0:03:01.8]} 13... Rg8 {[%clk
0:02:52.7]} 14. Bh6 {[%clk 0:03:02.2]} 14... Qc3+ {[%clk 0:01:37.3]} 15. Kf1
{[%clk 0:02:54.8]} 15... Qxc4+ {[%clk 0:01:37.2]} 16. Kg1 {[%clk 0:02:53.9]}
16... e5 {[%clk 0:00:22.5]} 17. Qd6 {[%clk 0:02:45.1]} 17... Be6 {[%clk
0:00:12.5]} 18. Qf8+ {[%clk 0:02:24.3]} 18... Kd7 {[%clk 0:00:12.3]} 19. Rd1+
{[%clk 0:02:16.5]} 19... Kc7 {[%clk 0:00:12.6]} 20. Qd6+ {[%clk 0:02:08.2]}
20... Kc8 {[%clk 0:00:06.8]} 21. h4 {[%clk 0:01:24.8]} 21... Bd5 {[%clk
0:00:04.4]} 22. Rh3 {[%clk 0:00:40.8]} 22... a5 {[%clk 0:00:03.7]} 23. Rhd3
{[%clk 0:00:25.9]} 23... b6 {[%clk 0:00:01.4]} 24. Rxd5 {[%clk 0:00:19.1]} 24...
cxd5 {[%clk 0:00:02.3]} 25. Rxd5 {[%clk 0:00:19.3]} 25... Ra7 {[%clk 0:00:01.3]}
26. Qxe5 {[%clk 0:00:13.1]} 26... Rd7 {[%clk 0:00:01]} 27. Rxd7 {[%clk 0:00:07]}
27... Kxd7 {[%clk 0:00:01.2]} 28. Qf5+ {[%clk 0:00:04.3]} 28... Qe6 {[%clk
0:00:01.7]} 29. Qd3+ {[%clk 0:00:04.6]} 29... Qd6 {[%clk 0:00:01.6]} 30. Qf5+
{[%clk 0:00:04]} 30... Qe6 {[%clk 0:00:01.7]} 31. Qd3+ {[%clk 0:00:04.3]} 31...
Kc6 {[%clk 0:00:02.2]} 32. Qc3+ {[%clk 0:00:04]} 32... Kb7 {[%clk 0:00:01.9]}
33. Qf3+ {[%clk 0:00:04.3]} 33... Ka7 {[%clk 0:00:01.8]} 34. Qf4 {[%clk
0:00:04.3]} 34... Qg6 {[%clk 0:00:01.8]} 35. Qc7+ {[%clk 0:00:03.9]} 35... Ka6
{[%clk 0:00:02.4]} 36. Qf4 {[%clk 0:00:04.4]} 36... Rxg7 {[%clk 0:00:01.8]} 37.
Bxg7 {[%clk 0:00:04.4]} 37... Qxg7 {[%clk 0:00:02.7]} 38. Qc4+ {[%clk
0:00:04.7]} 38... Kb7 {[%clk 0:00:02.2]} 39. Qd5+ {[%clk 0:00:05.1]} 39... Kc7
{[%clk 0:00:02.8]} 40. Qc4+ {[%clk 0:00:04.9]} 40... Kd6 {[%clk 0:00:03.4]} 41.
Qd3+ {[%clk 0:00:04.9]} 41... Kc5 {[%clk 0:00:04]} 42. Qf5+ {[%clk 0:00:04.3]}
42... Kb4 {[%clk 0:00:03.6]} 43. Qd3 {[%clk 0:00:04.2]} 43... a4 {[%clk
0:00:02.1]} 44. a3+ {[%clk 0:00:03.5]} 44... Kc5 {[%clk 0:00:02.5]} 45. Qf5+
{[%clk 0:00:03.2]} 45... Kc4 {[%clk 0:00:02.1]} 46. Qe4+ {[%clk 0:00:02.4]}
46... Kb3 {[%clk 0:00:01.2]} 47. Qc6 {[%clk 0:00:01.7]} 47... Kxa3 {[%clk
0:00:01.2]} 48. Qxb6 {[%clk 0:00:01.9]} 48... Ka2 {[%clk 0:00:01.5]} 49. g3
{[%clk 0:00:01.2]} 49... a3 {[%clk 0:00:02.4]} 50. Kg2 {[%clk 0:00:01.5]} 50...
Qb2 {[%clk 0:00:03.2]} 51. Qf6 {[%clk 0:00:00.7]} 51... Qxf6 {[%clk 0:00:02.4]}
0-1